Cogmind - Beta 16 @@@ ROGUE MODE // 2025.10.23 @ 15:33:21 Player: Visionary Result: Destroyed by P-70 Sage with Tesla Rifle Performance ------------- Evolutions (5) 2500 Regions Visited (6) 1200 Robots Destroyed (47) 235 Value Destroyed (1732) 1732 Prototype IDs (4) 80 Alien Tech Used (0) 0 Bonus (0) 0 TOTAL SCORE: 5747 Bonus ------- None Cogmind --------- Core Integrity 0/1000 Matter 300/300 Energy 35/100 System Corruption 7% Temperature Cool (0) Movement Core (700) Ox13 Location -5/Factory Parts ------- > --- POWER (2) -------- (None) > --- PROPULSION (4) --- (None) > --- UTILITY (6) ------ Large Storage Unit Structural Scanner Triangulator > --- WEAPON (5) ------- Heavy Phase Cannon Heavy Phase Cannon > --- INVENTORY (15) --- Light Ion Engine Micro Fission Core Improved Particle Charger Microactuators Recalibrator Improved Remote Datajack Peak State ------------ > --- POWER ------------ Micro Nuclear Core Micro Fission Core > --- PROPULSION ------- Improved Treads Wheel > --- UTILITY ---------- Improved Cryofiber Web Large Storage Unit Transmission Jammer Utility Shielding Hardened Light Armor Plating Improved Hacking Suite > --- WEAPON ----------- Gatling Laser Gatling Laser Flak Gun Heavy Flak Cannon Improved Remote Datajack > --- INVENTORY -------- Light Ion Engine Triangulator Advanced Terrain Scanner Improved Particle Charger Microactuators Recalibrator Variable Charge Gun [Rating: 57] Favorites ----------- Power Light Ion Engine Engine Light Ion Engine Power Core Micro Nuclear Core Propulsion Aluminum Leg Treads Light Treads Leg Aluminum Leg Wheel Wheel Hover Unit Antigrav System Flight Unit Biomechanical Wings Utility Small Storage Unit Device Structural Scanner Storage Small Storage Unit Hackware Improved Hacking Suite Protection Propulsion Shielding Weapon Subdweller Machine Gun Energy Gun Gatling Laser Energy Cannon Heavy Phase Cannon Ballistic Gun Subdweller Machine Gun Ballistic Cannon Heavy Flak Cannon Launcher Grenade Launcher Special Weapon Flamer Slashing Weapon Power Sword Build | -11 -10 -10 -10 -8 -6 -5 ------- Run | Yrd Mat Min Sub Scr Fac Fac Slots Evolved 10 | . . . . . 8 2 Power 1 | . . . . . 1 . Propulsion 2 | . . . . . 2 . Utility 4 | . . . . . 2 2 Weapon 3 | . . . . . 3 . Parts Attached 68 | 5 5 . 6 6 23 23 Power 10 | 1 . . 2 1 3 3 Engine 6 | 1 . . 2 1 1 1 Core 4 | . . . . . 2 2 Reactor . | . . . . . . . Propulsion 15 | 2 . . 1 1 6 5 Treads 2 | . . . . . 1 1 Leg 4 | 2 . . . 1 . 1 Wheel 7 | . . . 1 . 4 2 Hover 1 | . . . . . . 1 Flight 1 | . . . . . 1 . Utility 19 | . 4 . . 2 6 7 Device 11 | . 1 . . 1 3 6 Storage 3 | . 1 . . . 1 1 Processor . | . . . . . . . Hackware 1 | . . . . . 1 . Protection 4 | . 2 . . 1 1 . Artifact . | . . . . . . . Weapon 24 | 2 1 . 3 2 8 8 Energy Gun 6 | . . . . . 4 2 Energy Cannon 4 | . . . . . 2 2 Ballistic Gun 7 | 2 . . 3 1 1 . Ballistic Cannon 1 | . . . . . . 1 Launcher 1 | . 1 . . . . . Special Weapon 4 | . . . . 1 . 3 Impact Weapon . | . . . . . . . Slashing Weapon 1 | . . . . . 1 . Piercing Weapon . | . . . . . . . Special Melee Weapon . | . . . . . . . Unidentified Prototypes 2 | . . . . . 2 . Parts Lost 41 | . . . 4 . 12 25 Power 3 | . . . . . 1 2 Propulsion 13 | . . . 1 . 3 9 Utility 8 | . . . . . 2 6 Weapon 17 | . . . 3 . 6 8 Highest Loss Streak 6 | . . . 4 . 4 6 To Critical Strikes 1 | . . . . . . 1 Average Backups 5 | 1 3 4 3 5 5 8 Power . | . . . . . . 1 Propulsion . | . . . . . . . Utility 3 | . 1 2 2 3 4 4 Weapon 1 | . 1 2 1 2 . . Tool/Special . | . . . . . . . Unused Backups 7 | . . . . 1 3 3 Power . | . . . . . . . Propulsion 2 | . . . . . . 2 Utility 5 | . . . . 1 3 1 Weapon . | . . . . . . . Tool/Special . | . . . . . . . Average Slot Usage (%) 77 | . 97 100 98 94 51 63 Engine 9 | . 14 14 14 14 4 4 Leg 13 | . 28 28 25 21 3 1 Wheel 4 | . . . 1 2 6 7 Device 5 | . 9 14 11 1 3 8 Storage 9 | . 12 14 14 14 5 5 Hackware 1 | . . . . . 1 5 Protection 7 | . 2 . 2 12 6 5 Energy Gun 3 | . . . . . 8 7 Ballistic Gun 12 | . 14 14 18 23 3 2 Launcher 2 | . 13 14 8 . . . Special Weapon 2 | . . . . 4 . 2 Peak Build Rating 57 | 5 7 7 11 21 32 57 Average Rating 19 | 3 6 7 8 13 20 38 On Entrance 11 | . 5 7 7 11 21 27 Avg Prop Armor Cover (%) 9 | . . . 10 10 9 5 Naked Turns . | . . . . . . . Heaviest Build 61 | 6 14 14 19 23 27 61 Greatest Support 52 | 20 20 20 20 25 52 52 Greatest Overweight (x) 14 | . . . 1 1 7 14 Average Overweight (x) . | . . . . . . 1 Largest Inventory Capacity 15 | 5 8 8 8 8 10 15 Average Capacity 9 | 5 7 8 8 8 8 13 Most Carried 13 | 4 4 4 5 8 10 13 Average Carried 5 | 1 3 4 3 5 5 8 Final Capacity 15 | 5 8 8 8 8 10 15 Final Carried 9 | 2 4 4 3 8 9 6 Class Distribution -------------------- 62% | Mutant 20% | Scavenger-Tank 10% | Scavenger-Mutant 4% | Tank Dominant Class ---------------- Mutant | -10/Materials Mutant | -10/Mines Mutant | -10/Subcaves Mutant | -8/Scraptown Scavenger-Tank | -6/Factory Scavenger-Tank | -5/Factory Resources | -11 -10 -10 -10 -8 -6 -5 ----------- Run | Yrd Mat Min Sub Scr Fac Fac Matter Collected 1681 | 247 . 69 220 106 450 589 Remotely . | . . . . . . . Salvage Created 2107 | . . . 269 . 899 939 Parts 93 | . . . 19 . 33 41 Haulers Intercepted 2 | . . . . . . 2 Recyclers Shooed 2 | . . . . . 2 . Parts Field Recycled . | . . . . . . . Retrieved Matter . | . . . . . . . Parts Self-Destructed 16 | . . . 16 . . . Prevented . | . . . . . . . Parts Restored . | . . . . . . . Kills | -11 -10 -10 -10 -8 -6 -5 ------- Run | Yrd Mat Min Sub Scr Fac Fac Combat Hostiles Destroyed 31 | . . . 8 . 9 14 Guns 16 | . . . 5 . 5 6 Cannons 9 | . . . . . 2 7 AOE 5 | . . . 3 . 2 . Classes Destroyed 12 | . . . 1 . 6 5 Worker 3 | . . . . . 2 1 Builder 5 | . . . . . . 5 Tunneler 1 | . . . . . 1 . Hauler 2 | . . . . . . 2 Recycler 5 | . . . . . 4 1 Swarmer 7 | . . . . . 3 4 Grunt 4 | . . . . . . 4 Brawler 1 | . . . . . . 1 Sentry 4 | . . . . . 4 . Hunter 2 | . . . . . . 2 Programmer 5 | . . . . . 2 3 Subdweller 8 | . . . 8 . . . Best Kill Streak 4 | . . . 3 . 4 3 Combat Bots Only 3 | . . . 3 . 3 3 Max Kills in Single Turn 3 | . . . 1 . 3 1 Gunslinging . | . . . . . . . Exploded 2 | . . . 1 . 2 . Melee . | . . . . . . . Uniques/NPCs Destroyed . | . . . . . . . Combat | -11 -10 -10 -10 -8 -6 -5 -------- Run | Yrd Mat Min Sub Scr Fac Fac Hostile Shots Fired 572 | . . . 59 . 331 182 Missed 192 | . . . 18 . 125 49 Hits 380 | . . . 41 . 206 133 Projectile 380 | . . . 41 . 206 133 AOE 5 | . . . 2 . . 3 Critical Strikes 6 | . . . 1 . . 5 Damage Taken 5692 | . . . 897 . 1865 2930 Core 1975 | . . . 224 . 731 1020 Absorbed by Shields . | . . . . . . . Redirected to Shielding 41 | . . . . . 30 11 Core Remaining (%) 41 | 100 . . . 10 14 . Volleys Fired 139 | . 2 . 28 . 47 62 Largest 4 | . 2 . 2 . 3 4 Hottest 232 | . 50 . 50 . 223 232 Shots Fired 266 | . 3 . 53 . 87 123 Gun 191 | . 2 . 43 . 72 74 Cannon 48 | . . . . . 11 37 Launcher 11 | . 1 . 10 . . . Special 16 | . . . . . 4 12 Kinetic 106 | . 2 . 43 . 16 45 Thermal 136 | . . . . . 71 65 Explosive 11 | . 1 . 10 . . . Electromagnetic 8 | . . . . . . 8 Robot Hit Streak 17 | . 1 . 17 . 12 12 Robot Miss Streak 7 | . 1 . 2 . 6 7 Penetration Max . | . . . . . . . Secondary Targets . | . . . . . . . Shots Hit Robots 199 | . 1 . 44 . 62 92 Core Hits 144 | . . . 19 . 49 76 Critical Kills 1 | . . . . . . 1 Critical Parts Destroyed . | . . . . . . . Critical Strikes 1 | . . . . . . 1 Meltdown 1 | . . . . . . 1 Melee Attacks 2 | . . . . . 2 . Impact . | . . . . . . . Slashing 2 | . . . . . 2 . Piercing . | . . . . . . . Sneak Attacks . | . . . . . . . Combat Hostiles . | . . . . . . . Follow-up Attacks . | . . . . . . . Damage Inflicted 4501 | . 54 . 808 . 1627 2012 Guns 2858 | . 15 . 383 . 1134 1326 Cannons 753 | . . . . . 94 659 Explosions 746 | . 39 . 425 . 264 18 Melee 97 | . . . . . 97 . Ramming 8 | . . . . . 4 4 Kinetic 1248 | . 15 . 383 . 199 651 Thermal 2527 | . . . . . 1327 1200 Explosive 464 | . 39 . 425 . . . Electromagnetic 157 | . . . . . . 157 Impact . | . . . . . . . Slashing 97 | . . . . . 97 . Piercing . | . . . . . . . Highest Corruption 7 | . . . . . 5 7 Average Corruption 3 | . . . . . 5 2 Corruption Purged . | . . . . . . . Corruption Blocked . | . . . . . . . Effects 25 | . . . . . 7 18 Message Errors 7 | . . . . . 1 6 Matter Fused 5 | . . . . . 1 4 Heat Flow Errors 3 | . . . . . . 3 Energy Discharges 1 | . . . . . . 1 Parts Rejected 1 | . . . . . . 1 Parts Fused 2 | . . . . . . 2 Data Loss (minor) 1 | . . . . . 1 . Data Loss (major) 1 | . . . . . 1 . Misfires 1 | . . . . . . 1 Alerts 1 | . . . . . 1 . Weapon Failures 2 | . . . . . 2 . Overload Shots . | . . . . . . . Overflow Damage 28 | . . . . . 28 . Projectiles . | . . . . . . . Explosions 28 | . . . . . 28 . Melee . | . . . . . . . Knockbacks 6 | . . . . . . 6 Impact . | . . . . . . . Kinetic 6 | . . . . . . 6 Secondary . | . . . . . . . Self-Inflicted Damage 206 | . . . 8 . 177 21 Shots 4 | . . . 1 . 2 1 Rammed . | . . . . . . . Targets Rammed 2 | . . . . . 1 1 Kicked 2 | . . . . . 1 1 Crushed . | . . . . . . . Highest Temperature 641 | . . . . . 415 641 Average Temperature 127 | . . . . . 89 160 Received Heat Transfer 870 | . . . 18 . 474 378 Effects 11 | . . . . . 3 8 Shutdowns 1 | . . . . . 1 . Energy Bleed 1 | . . . . . . 1 Interference 1 | . . . . . . 1 Matter Decay 3 | . . . . . 1 2 Short Circuit 1 | . . . . . 1 . Damage (minor) 1 | . . . . . . 1 Damage (major) 1 | . . . . . . 1 Damage (core) 2 | . . . . . . 2 Siege Activations . | . . . . . . . Martial Activations . | . . . . . . . Shielding Activations . | . . . . . . . Robots Disrupted 1 | . . . . . 1 . Combat Hostiles 1 | . . . . . 1 . Robots Corrupted 1 | . . . . . . 1 Combat Hostiles . | . . . . . . . Parts Fried 4 | . . . . . . 4 Impact Corruptions . | . . . . . . . Robots Melted 2 | . . . . . 1 1 Combat Hostiles 1 | . . . . . . 1 Parts Melted 16 | . . . . . 8 8 Heat Transferred 4851 | . . . . . 2557 2294 Parts Sabotaged . | . . . . . . . Parts Stolen . | . . . . . . . Parts Stripped . | . . . . . . . Power Chain Reactions . | . . . . . . . Alert | -11 -10 -10 -10 -8 -6 -5 ------- Run | Yrd Mat Min Sub Scr Fac Fac Maximum Alert Level 1 | . . . . . 1 . Low Security (%) 92 | 100 100 100 . . 84 100 Level 1 7 | . . . . . 15 . Level 2 . | . . . . . . . Level 3 . | . . . . . . . Level 4 . | . . . . . . . Level 5 . | . . . . . . . High Security . | . . . . . . . Max Security . | . . . . . . . Peak Influence 281 | . 5 . . . 281 65 Initial 17 | . . . . . . 17 Average 53 | . . . . . 102 20 Influence Increases 994 | . 13 . . . 540 441 Destroy 0b10 Robot/C 460 | . . . . . 180 280 Destroy 0b10 Robot/NC 80 | . . . . . 35 45 Destroy Leader 124 | . . . . . 70 54 Successful Hack 9 | . 8 . . . 1 . Disable Machine 255 | . . . . . 225 30 Destroy Structure 36 | . 5 . . . 29 2 Lose Combat Pursuer 30 | . . . . . . 30 Influence Decreases 963 | . 13 . . . 504 446 Entered New Map 19 | . . . . . . 19 Time Decay 670 | . 13 . . . 384 273 Lost Part 274 | . . . . . 120 154 Squads Dispatched 12 | . . . . . 7 5 Investigation 1 | . . . . . . 1 Extermination 4 | . . . . . 2 2 Reinforcement 3 | . . . . . 1 2 Assault . | . . . . . . . Garrison 4 | . . . . . 4 . Intercept . | . . . . . . . Searches Triggered . | . . . . . . . Construction Impeded 1 | . . . . . . 1 Haulers Reinforced 1 | . . . . . . 1 Active Scanning Responses . | . . . . . . . Cargo Convoy Interrupts . | . . . . . . . Stealth | -11 -10 -10 -10 -8 -6 -5 --------- Run | Yrd Mat Min Sub Scr Fac Fac Distress Signals . | . . . . . . . Communications Jammed . | . . . . . . . Distress Signals . | . . . . . . . Times Spotted 39 | . 2 . 9 . 12 16 Peak Tracking Total 4 | . 1 . 3 . 3 4 Tactical Retreats 2 | . . . . . . 2 Traps | -11 -10 -10 -10 -8 -6 -5 ------- Run | Yrd Mat Min Sub Scr Fac Fac Traps Triggered 2 | . . . . . . 2 Indirectly . | . . . . . . . Trap Hack Attempts . | . . . . . . . Triggered . | . . . . . . . Disarmed . | . . . . . . . Reprogrammed . | . . . . . . . Reused . | . . . . . . . Traps Extracted . | . . . . . . . Installed . | . . . . . . . Triggered . | . . . . . . . Machines | -11 -10 -10 -10 -8 -6 -5 ---------- Run | Yrd Mat Min Sub Scr Fac Fac Machines Disabled 17 | . . . . . 15 2 Max in Single Turn 13 | . . . . . 13 1 Machines Repaired . | . . . . . . . Machines Dismantled . | . . . . . . . Machines Sabotaged . | . . . . . . . Overloaded Fab Kills . | . . . . . . . Hacking | -11 -10 -10 -10 -8 -6 -5 --------- Run | Yrd Mat Min Sub Scr Fac Fac Machines Accessed 13 | . 5 . . 3 4 1 Terminals 6 | . 5 . . . 1 . Fabricators 1 | . . . . . . 1 Repair Stations 2 | . . . . . 2 . Recycling Units . | . . . . . . . Scanalyzers 1 | . . . . . 1 . Garrison Access . | . . . . . . . Total Hacks 44 | . 8 . . 23 10 3 Successful 36 | . 5 . . 23 6 2 Failed 8 | . 3 . . . 4 1 Catastrophic 1 | . . . . . 1 . Database Lockouts . | . . . . . . . Manual . | . . . . . . . Terminals 10 | . 8 . . . 2 . Fabricators 3 | . . . . . . 3 Repair Stations 2 | . . . . . 2 . Recycling Units . | . . . . . . . Scanalyzers 6 | . . . . . 6 . Garrison Access . | . . . . . . . Terminal Hacks 29 | . 5 . . 23 1 . Record 25 | . 1 . . 23 1 . Robot Analysis 1 | . 1 . . . . . Prototype ID Bank 1 | . 1 . . . . . Emergency Access Points 1 | . 1 . . . . . Locate Traps 1 | . 1 . . . . . Fabricator Hacks 2 | . . . . . . 2 Network Status 1 | . . . . . . 1 Load Schematic 1 | . . . . . . 1 Repair Station Hacks . | . . . . . . . Recycling Unit Hacks . | . . . . . . . Scanalyzer 5 | . . . . . 5 . Insert Component 2 | . . . . . 2 . Analyze 3 | . . . . . 3 . Garrison Access Hacks . | . . . . . . . Unauthorized Hacks . | . . . . . . . Terminals . | . . . . . . . Fabricators . | . . . . . . . Repair Stations . | . . . . . . . Recycling Units . | . . . . . . . Scanalyzers . | . . . . . . . Garrison Access . | . . . . . . . Data Cores Recovered . | . . . . . . . Used . | . . . . . . . Hacking Detections 7 | . 2 . . . 4 1 Full Trace Events 1 | . . . . . . 1 Feedback Events . | . . . . . . . Feedback Blocked . | . . . . . . . Robot Schematics Acquired . | . . . . . . . Robots Built . | . . . . . . . Authchips . | . . . . . . . Time . | . . . . . . . Total Robot Build Rating . | . . . . . . . Part Schematics Acquired 2 | . . . . . 2 . Parts Built . | . . . . . . . Authchips . | . . . . . . . Time . | . . . . . . . Total Part Build Rating . | . . . . . . . Part Studies Acquired . | . . . . . . . Parts Repaired . | . . . . . . . Time . | . . . . . . . Parts Recycled . | . . . . . . . Recycled Matter . | . . . . . . . Retrieved Matter . | . . . . . . . Retrieved Components . | . . . . . . . Parts Scanalyzed 2 | . . . . . 2 . Part Schematics Acquired 2 | . . . . . 2 . Parts Damaged 1 | . . . . . 1 . Bothacking | -11 -10 -10 -10 -8 -6 -5 ------------ Run | Yrd Mat Min Sub Scr Fac Fac Used RIF Installer . | . . . . . . . Robots Hacked 1 | . . . . . . 1 Non-combat . | . . . . . . . Combat 1 | . . . . . . 1 Robot Hacks Applied 1 | . . . . . . 1 parse_system 1 | . . . . . . 1 Relay Couplers Released . | . . . . . . . Fabnet Peak Effective % . | . . . . . . . Robots Rewired . | . . . . . . . Allies Hacked . | . . . . . . . Hacks Repelled . | . . . . . . . Allies | -11 -10 -10 -10 -8 -6 -5 -------- Run | Yrd Mat Min Sub Scr Fac Fac Total Allies . | . . . . . . . Largest Group . | . . . . . . . Highest-Rated Group . | . . . . . . . Highest-Rated Ally . | . . . . . . . Total Orders . | . . . . . . . Ally Attacks . | . . . . . . . Total Damage . | . . . . . . . Kills . | . . . . . . . Allies Corrupted . | . . . . . . . Allies Melted . | . . . . . . . Intel | -11 -10 -10 -10 -8 -6 -5 ------- Run | Yrd Mat Min Sub Scr Fac Fac Active Infowar (turns) 1910 | . 279 41 397 209 325 659 Terrain 536 | . . . . 209 325 2 Structural 785 | . 279 41 397 . . 68 Triangulation 67 | . . . . . . 67 Jamming 591 | . . . . . . 591 Robot Analysis Total 1 | . 1 . . . . . Derelict Logs Recovered 2 | . . . . 2 . . Drone Launches . | . . . . . . . Drone Recoveries . | . . . . . . . Exploration | -11 -10 -10 -10 -8 -6 -5 ------------- Run | Yrd Mat Min Sub Scr Fac Fac Turns Passed 4556 | 51 377 41 461 1497 1173 956 Spaces Moved 3049 | 38 302 35 300 1089 788 497 Core 116 | 8 . . . . 96 12 Treads 108 | . . . . . 63 45 Legs 1841 | 30 302 35 255 890 217 112 Wheels 984 | . . . 45 199 412 328 Hover . | . . . . . . . Flight . | . . . . . . . Fastest Speed 50 | 50 120 120 110 110 50 90 Average Speed 128 | 105 120 120 121 135 115 147 Slowest Speed 750 | 120 120 120 190 190 400 750 Overloaded Moves . | . . . . . . . Propulsion Burnouts . | . . . . . . . Robots Hopped . | . . . . . . . Potential Cave-ins . | . . . . . . . Cave-ins Triggered . | . . . . . . . Exploration Rate (%) 25 | 3 44 8 30 59 22 9 Regions Visited 6 Branch Regions 3 Pre-discovered Areas 1 | . . . . 1 . . Known Exits Taken . | . . . . . . . Unknown Exits Taken 6 | 1 1 1 1 1 1 . Scrap Searched 2 | . . . . 2 . . Spaces Dug . | . . . . . . . Terrain Destroyed 82 | . 5 . 49 . 27 1 Melee . | . . . . . . . Projectile 1 | . . . . . . 1 AOE 81 | . 5 . 49 . 27 . Terrain Rammed . | . . . . . . . Walls Destroyed . | . . . . . . . Machines Disabled . | . . . . . . . Actions | -11 -10 -10 -10 -8 -6 -5 --------- Run | Yrd Mat Min Sub Scr Fac Fac Total 3438 | 49 312 34 346 1111 966 620 Wait 48 | . . . 1 . 41 6 Move 3043 | 37 301 34 299 1088 787 497 Hop . | . . . . . . . Pick Up 77 | 7 4 . 5 10 30 21 Fast Attach . | . . . . . . . Attach 67 | 5 2 . 5 1 31 23 Detach 14 | . . . 1 1 10 2 Swap 22 | . 3 . 5 6 4 4 Drop 24 | . . . 2 5 13 4 Fire 139 | . 2 . 28 . 47 62 Melee 2 | . . . . . 2 . Ram . | . . . . . . . Kick 2 | . . . . . 1 1 Crush . | . . . . . . . Escape Stasis . | . . . . . . . Rewire . | . . . . . . . Trap . | . . . . . . . Miscellaneous . | . . . . . . . Route ------- -11/Scrapyard -10/Materials (discovered 3 exits: [*Mat] / [*Min] / [Sub]) -10/Mines -10/Subcaves (discovered 2 exits: [*Mat] / *Scr) -8/Scraptown -6/Factory (discovered 2 exits: *Fac x2) -5/Factory History --------- Turn | Location | Event 6 | -11/Scrapyard | Discovered new exit (range 16) 52 | -11/Scrapyard | Entered Materials 218 | -10/Materials | Discovered new exit (range 16) 268 | -10/Materials | Discovered new exit (range 8) 304 | -10/Materials | Build established: Mutant 365 | -10/Materials | Discovered new exit (range 5) 429 | -10/Materials | Entered Mines 451 | -10/Mines | Discovered new exit (range 10) 470 | -10/Mines | Entered Subcaves 471 | -10/Subcaves | Approached by a straggling Scientist 667 | -10/Subcaves | Discovered new exit (range 12) 821 | -10/Subcaves | Core integrity fell below 50% 830 | -10/Subcaves | Core integrity fell below 20% 879 | -10/Subcaves | Lost 4 parts (1n3w) 931 | -10/Subcaves | Entered Scraptown 1084 | -8/Scraptown | Visited Fellowship of the Rings 1124 | -8/Scraptown | Visited Symbiants 1150 | -8/Scraptown | Build established: Scavenger-Mutant 1198 | -8/Scraptown | Visited Comm Corps 1456 | -8/Scraptown | Build established: Mutant 1810 | -8/Scraptown | Scanned Subdweller tech in exchange for log data 1814 | -8/Scraptown | Learned Factory terminal intel 1815 | -8/Scraptown | Learned location of Warlord (-5) 1832 | -8/Scraptown | Discovered new exit (range 5) 1954 | -8/Scraptown | Visited CPS Storage 1970 | -8/Scraptown | Visited Awakened 2014 | -8/Scraptown | Visited UFD Registry 2034 | -8/Scraptown | Visited Cyclists 2115 | -8/Scraptown | Visited TADAMA 2428 | -8/Scraptown | Entered Factory 2428 | -6/Factory | Evolved 8 slots: Power x1, Propulsion x2, Utility x2, Weapon x3 2429 | -6/Factory | Loaded intel: 25 terminal locations 2915 | -6/Factory | Lost 4 parts (1p1u2w) 2948 | -6/Factory | Core integrity fell below 50% 2955 | -6/Factory | Garrison activated, responded to threat 2997 | -6/Factory | Lost 4 parts (1u3w) 3023 | -6/Factory | Discovered new exit (range 6) 3024 | -6/Factory | Core integrity fell below 20% 3457 | -6/Factory | Build established: Scavenger-Tank 3480 | -6/Factory | Discovered new exit (range 15) 3570 | -6/Factory | Garrison activated, responded to threat 3601 | -6/Factory | Entered another Factory area 3601 | -5/Factory | Evolved 2 slots: Utility x2 4120 | -5/Factory | Lost 6 parts (1n2u3w) 4186 | -5/Factory | Lost 4 parts (1n3w) 4215 | -5/Factory | Core integrity fell below 50% 4235 | -5/Factory | Lost 3 parts (1n1u1w) 4480 | -5/Factory | Build established: Mutant 4529 | -5/Factory | Core integrity fell below 20% 4557 | -5/Factory | Destroyed by P-70 Sage with Tesla Rifle Last Messages --------------- Acquired 25 matter. BXE0KGV>LV1CYDG85 P-70 Sage suffers critical hit (Meltdown). Antigrav System melted. Imp. Heat Sink melted. Imp. Remote Datajack melted. Imp. Target Analyzer melted. Imp. Heat Sink melted. Nuclear Reactor explodes. Imp. Hacking Suite destroyed. Nuclear Reactor explodes. Adv. Terrain Scanner destroyed. System corrupted: FCS attempts to trigger Hvy. Phase Cannon. K-01 Serf collects debris. Nuclear Reactor explodes. K-01 Serf collects debris. [Achievement: 5k Club] Map ----- +----------------------------------------------------+ | """ ##??# #??????????????????????????????? | | "F ##??# """ #??????????????????????????????? | | """ ##### """ #??????????????????????????????? | | """ ##### """ #??????????????????????????????? | | """ % % # #??????????????????????????????? | | % # """ #??????????????????????????????? | | + """ #???? ?????????????????????????? | | # """ #???""?????????????????????????? | | # #?? """ ???????????????????????? | | # ## """ ???????????????????????? | | ###+##### ????????????????????????? | | """????????????????????????? | | """????????????????????????? | | """ ""?????????????????????? | | == ????????????????????? | | =] ????????????????????? | | =]] ###+#############?????????????????????? | | # ##?????????????????????? | | # """" """" ##?????????????????????? | | # """" """ ##?????????????????????? | | # """" """" ####???????????????????? | | # """" """" ##########?????????????? | | #! ######### ???????????? | | ###/########### ### ???????????? | | # p # ???????????? | | ?? ?? @ # ???????????? | | ? ?? ????????? | | # ?????""" ????????? | | # ??????"" # ?????????? | | # ???????"" ##??????????? | | ????????? ###??????????? | | ?? ?????????""" k ###??????????? | | ??????????????" ???????????? | | ??????????????" #### ###### """" ???????????? | | ????????????? + ###### """" ???????????? | | ?????????????? ????## ??????? ""???????????????? | | ???????????????????## ??????? ""???????????????? | | ???????????????????## ????????"????????????????? | | ???????????????????## ?????????????????????????? | | ???????????????????## ??????????????????????????? | | ?????????????????????????????????????????????????? | | ?????????????????????????????????????????????????? | | ?????????????????????????????????????????????????? | | ?????????????????????????????????????????????????? | | ?????????????????????????????????????????????????? | | ?????????????????????????????????????????????????? | | ?????????????????????????????????????????????????? | | ?????????????????????????????????????????????????? | | ?????????????????????????????????????????????????? | | ?????????????????????????????????????????????????? | +----------------------------------------------------+ Best States ------------- Heat Dissipation 40 Energy Generation 27 Energy Capacity 210 Matter Stores 300 Matter Capacity 300 Sight Range 16 Terrain Scan Range 20 Terrain Scan Density 10 Jamming Range 12 Base Temperature (-) 150 Armor Coverage 225 Propulsion Shielding 33 Utility Shielding 33 Evasion (%) 65 Recoil Reduction 1 Particle Charging 20 Offensive Hacking 12 Item Schematics ----------------- Field Recycling Unit | -6/Factory | Scanalyzed Triangulator | -6/Factory | Scanalyzed Robot Schematics ------------------ None Fabricated ------------ Nothing Repaired ---------- Nothing Studied --------- None Alien Tech Used ----------------- None Achievements -------------- 5k Club Civilization 2243 It Was An Accident, I Swear It's Just You Made in Tau Ceti IV More Dakka Please Novice Programmer Oops Risk Taker Serviceable Loadout Troublemaker Challenges ------------ None Game ------ Seed FortressInertialSuperbattery Manual? 0 Play Time 01:13:33 Cumulative 3.7 hours Start 2025.10.23 @ 14:16:41 End 2025.10.23 @ 15:33:21 Sessions 3 Manual Loads 0 Difficulty Rogue Special Mode None Game No. 8 Rogue 8 Adventurer 0 Explorer 0 Win Type - Total 0 Types 0/0/0/0/0/0/0/0/0/0 Lore% 9 Gallery% 7 Achievement% 6 Wizard Run 0 Options --------- Layout 0 ASCII 0 Keyboard 0 Movement Mouse Keybinds 0 Fullscreen 1 Font 18/SmallcapsGlow Map View 76x50 Zoom Use 0% Tactical HUD 0 Map Filters NONE Filters NONE Steam 1 RUN: 7de8bf51-e8f8-4b7a-b94d-e77a26ffd0d4